[Event "Titled Tuesday Blitz March 21 Late 2023"]
[White "Urazayev, Arystanbek"]
[Black "Paravyan, David"]
[WhiteFideId "13709810"]
[BlackFideId "4194985"]
[WhiteElo "2479"]
[BlackElo "2577"]
[Result "1/2-1/2"]
[Round "06"]
[TimeControl "180+2"]
[Date "2023.03.21"]
[WhiteClock "0:00:11"]
[BlackClock "0:00:16"]

1. e4 {[%clk 0:03:00]}  e5 {[%clk 0:02:58]} 2. Bc4 {[%clk 0:02:59]}  Nf6 {[%clk 0:02:58]} 3. d3 {[%clk 0:02:59]}  Bc5 {[%clk 0:02:57]} 4. Nf3 {[%clk 0:02:58]}  d6 {[%clk 0:02:57]} 5. Nc3 {[%clk 0:02:58]}  a6 {[%clk 0:02:55]} 6. Be3 {[%clk 0:02:53]}  Bxe3 {[%clk 0:02:53]} 7. fxe3 {[%clk 0:02:54]}  Nc6 {[%clk 0:02:49]} 8. a3 {[%clk 0:02:49]}  Be6 {[%clk 0:02:49]} 9. Nd2 {[%clk 0:02:35]}  Qd7 {[%clk 0:02:47]} 10. O-O {[%clk 0:02:33]}  Ne7 {[%clk 0:02:38]} 11. Bxe6 {[%clk 0:02:13]}  fxe6 {[%clk 0:02:34]} 12. a4 {[%clk 0:02:02]}  Ng6 {[%clk 0:02:32]} 13. Qe2 {[%clk 0:01:58]}  O-O {[%clk 0:02:30]} 14. d4 {[%clk 0:01:53]}  exd4 {[%clk 0:02:22]} 15. exd4 {[%clk 0:01:53]}  e5 {[%clk 0:02:22]} 16. Nf3 {[%clk 0:01:20]}  exd4 {[%clk 0:02:21]} 17. Qc4+ {[%clk 0:01:14]}  Qf7 {[%clk 0:02:14]} 18. Qxd4 {[%clk 0:01:12]}  Rae8 {[%clk 0:02:15]} 19. Rae1 {[%clk 0:01:06]}  h6 {[%clk 0:02:12]} 20. e5 {[%clk 0:01:01]}  dxe5 {[%clk 0:02:11]} 21. Nxe5 {[%clk 0:01:01]}  Nxe5 {[%clk 0:02:11]} 22. Rxe5 {[%clk 0:01:02]}  Rxe5 {[%clk 0:02:10]} 23. Qxe5 {[%clk 0:01:03]}  Re8 {[%clk 0:02:10]} 24. Qd4 {[%clk 0:00:58]}  Qe6 {[%clk 0:02:07]} 25. h3 {[%clk 0:00:52]}  Qe3+ {[%clk 0:01:59]} 26. Qxe3 {[%clk 0:00:52]}  Rxe3 {[%clk 0:02:00]} 27. Kf2 {[%clk 0:00:53]}  Re5 {[%clk 0:02:00]} 28. Rd1 {[%clk 0:00:53]}  Kf7 {[%clk 0:01:58]} 29. Rd8 {[%clk 0:00:52]}  Ne4+ {[%clk 0:01:19]} 30. Nxe4 {[%clk 0:00:51]}  Rxe4 {[%clk 0:01:20]} 31. b3 {[%clk 0:00:45]}  Re6 {[%clk 0:01:15]} 32. Rb8 {[%clk 0:00:42]}  b6 {[%clk 0:01:14]} 33. Rc8 {[%clk 0:00:36]}  Rc6 {[%clk 0:01:12]} 34. c4 {[%clk 0:00:36]}  Ke7 {[%clk 0:00:36]} 35. Ke3 {[%clk 0:00:32]}  Kd7 {[%clk 0:00:35]} 36. Rg8 {[%clk 0:00:32]}  Re6+ {[%clk 0:00:31]} 37. Kd4 {[%clk 0:00:30]}  Re7 {[%clk 0:00:32]} 38. c5 {[%clk 0:00:27]}  Kc6 {[%clk 0:00:29]} 39. cxb6 {[%clk 0:00:24]}  Kxb6 {[%clk 0:00:28]} 40. Kc4 {[%clk 0:00:17]}  h5 {[%clk 0:00:26]} 41. b4 {[%clk 0:00:14]}  Re4+ {[%clk 0:00:25]} 42. Kc3 {[%clk 0:00:14]}  Re3+ {[%clk 0:00:25]} 43. Kc4 {[%clk 0:00:14]}  Rg3 {[%clk 0:00:25]} 44. a5+ {[%clk 0:00:13]}  Kb7 {[%clk 0:00:25]} 45. Rh8 {[%clk 0:00:07]}  g6 {[%clk 0:00:24]} 46. b5 {[%clk 0:00:07]}  axb5+ {[%clk 0:00:20]} 47. Kxb5 {[%clk 0:00:08]}  Rg5+ {[%clk 0:00:21]} 48. Kb4 {[%clk 0:00:07]}  Rxg2 {[%clk 0:00:21]} 49. Rh6 {[%clk 0:00:06]}  Rg3 {[%clk 0:00:20]} 50. h4 {[%clk 0:00:06]}  Rg4+ {[%clk 0:00:20]} 51. Kb5 {[%clk 0:00:05]}  c6+ {[%clk 0:00:21]} 52. Kc5 {[%clk 0:00:06]}  Rxh4 {[%clk 0:00:21]} 53. Rxg6 {[%clk 0:00:06]}  Rg4 {[%clk 0:00:22]} 54. Rh6 {[%clk 0:00:05]}  Rg5+ {[%clk 0:00:22]} 55. Kb4 {[%clk 0:00:05]}  Rb5+ {[%clk 0:00:21]} 56. Ka4 {[%clk 0:00:05]}  Re5 {[%clk 0:00:19]} 57. a6+ {[%clk 0:00:05]}  Kb6 {[%clk 0:00:19]} 58. a7 {[%clk 0:00:05]}  Kxa7 {[%clk 0:00:09]} 59. Rxc6 {[%clk 0:00:04]}  Kb7 {[%clk 0:00:10]} 60. Rh6 {[%clk 0:00:04]}  Kc7 {[%clk 0:00:10]} 61. Kb4 {[%clk 0:00:05]}  Kd7 {[%clk 0:00:10]} 62. Kc4 {[%clk 0:00:06]}  Ke7 {[%clk 0:00:10]} 63. Kd4 {[%clk 0:00:07]}  Ra5 {[%clk 0:00:11]} 64. Ke4 {[%clk 0:00:07]}  Kf7 {[%clk 0:00:12]} 65. Kf3 {[%clk 0:00:07]}  Kg7 {[%clk 0:00:12]} 66. Rb6 {[%clk 0:00:08]}  Rf5+ {[%clk 0:00:13]} 67. Kg2 {[%clk 0:00:08]}  Rf6 {[%clk 0:00:13]} 68. Rxf6 {[%clk 0:00:08]}  Kxf6 {[%clk 0:00:14]} 69. Kh3 {[%clk 0:00:09]}  h4 {[%clk 0:00:15]} 70. Kh2 {[%clk 0:00:10]}  h3 {[%clk 0:00:15]} 71. Kh1 {[%clk 0:00:10]}  h2 {[%clk 0:00:16]} 72. Kxh2 {[%clk 0:00:11]} 1/2-1/2


[Site "https://www.chess.com"]

[Event "Titled Tuesday Blitz March 21 Late 2023"]
[White "Firouzja, Alireza"]
[Black "Timofeev, Artyom"]
[WhiteFideId "12573981"]
[BlackFideId "4140419"]
[WhiteElo "2904"]
[BlackElo "2586"]
[Result "1-0"]
[Round "06"]
[TimeControl "180+2"]
[Date "2023.03.21"]
[WhiteClock "0:00:14"]
[BlackClock "0:00:02"]

1. e4 {[%clk 0:02:55]}  c5 {[%clk 0:02:57]} 2. Nf3 {[%clk 0:02:52]}  Nc6 {[%clk 0:02:56]} 3. Bb5 {[%clk 0:02:51]}  d6 {[%clk 0:02:53]} 4. O-O {[%clk 0:02:49]}  Bd7 {[%clk 0:02:52]} 5. Re1 {[%clk 0:02:48]}  a6 {[%clk 0:02:52]} 6. Bf1 {[%clk 0:02:47]}  Bg4 {[%clk 0:02:52]} 7. h3 {[%clk 0:02:45]}  Bxf3 {[%clk 0:02:52]} 8. Qxf3 {[%clk 0:02:45]}  g6 {[%clk 0:02:52]} 9. c3 {[%clk 0:02:44]}  Bg7 {[%clk 0:02:51]} 10. d3 {[%clk 0:02:44]}  e6 {[%clk 0:02:43]} 11. Be3 {[%clk 0:02:43]}  Nge7 {[%clk 0:02:42]} 12. Nd2 {[%clk 0:02:42]}  O-O {[%clk 0:02:42]} 13. Qd1 {[%clk 0:02:41]}  b5 {[%clk 0:02:40]} 14. Nf3 {[%clk 0:02:41]}  b4 {[%clk 0:02:38]} 15. d4 {[%clk 0:02:39]}  bxc3 {[%clk 0:02:38]} 16. bxc3 {[%clk 0:02:40]}  cxd4 {[%clk 0:02:37]} 17. cxd4 {[%clk 0:02:41]}  d5 {[%clk 0:02:37]} 18. e5 {[%clk 0:02:41]}  Nf5 {[%clk 0:02:35]} 19. Bc1 {[%clk 0:02:19]}  Qa5 {[%clk 0:02:03]} 20. Bd2 {[%clk 0:01:46]}  Qb6 {[%clk 0:01:59]} 21. Bc3 {[%clk 0:01:45]}  Rac8 {[%clk 0:01:49]} 22. Rb1 {[%clk 0:01:43]}  Qa7 {[%clk 0:01:48]} 23. g4 {[%clk 0:01:41]}  Nfe7 {[%clk 0:01:42]} 24. Re3 {[%clk 0:01:36]}  Rc7 {[%clk 0:01:37]} 25. Qa4 {[%clk 0:01:34]}  a5 {[%clk 0:01:34]} 26. Bb5 {[%clk 0:01:28]}  Rfc8 {[%clk 0:01:32]} 27. Be1 {[%clk 0:01:19]}  Bh6 {[%clk 0:01:14]} 28. Reb3 {[%clk 0:01:14]}  Bf4 {[%clk 0:01:11]} 29. Kg2 {[%clk 0:01:14]}  Kg7 {[%clk 0:01:09]} 30. Bf1 {[%clk 0:01:07]}  h6 {[%clk 0:01:00]} 31. a3 {[%clk 0:01:07]}  g5 {[%clk 0:00:55]} 32. Rb6 {[%clk 0:01:02]}  Ng6 {[%clk 0:00:54]} 33. Ra6 {[%clk 0:00:58]}  Nh4+ {[%clk 0:00:50]} 34. Nxh4 {[%clk 0:00:57]}  Qxd4 {[%clk 0:00:50]} 35. Qxd4 {[%clk 0:00:57]}  Nxd4 {[%clk 0:00:50]} 36. Nf3 {[%clk 0:00:57]}  Nxf3 {[%clk 0:00:48]} 37. Kxf3 {[%clk 0:00:58]}  Rc1 {[%clk 0:00:47]} 38. Rab6 {[%clk 0:00:57]}  a4 {[%clk 0:00:43]} 39. Bd3 {[%clk 0:00:50]}  Bxe5 {[%clk 0:00:40]} 40. Ke2 {[%clk 0:00:50]}  Bf4 {[%clk 0:00:37]} 41. R6b4 {[%clk 0:00:46]}  Rxb1 {[%clk 0:00:36]} 42. Bxb1 {[%clk 0:00:46]}  Rc1 {[%clk 0:00:34]} 43. Bd3 {[%clk 0:00:47]}  e5 {[%clk 0:00:32]} 44. f3 {[%clk 0:00:40]}  Ra1 {[%clk 0:00:22]} 45. Rxa4 {[%clk 0:00:39]}  Ra2+ {[%clk 0:00:22]} 46. Kf1 {[%clk 0:00:38]}  Ra1 {[%clk 0:00:22]} 47. Rb4 {[%clk 0:00:30]}  Rxa3 {[%clk 0:00:21]} 48. Ke2 {[%clk 0:00:20]}  e4 {[%clk 0:00:21]} 49. fxe4 {[%clk 0:00:18]}  dxe4 {[%clk 0:00:22]} 50. Rxe4 {[%clk 0:00:18]}  Ra2+ {[%clk 0:00:20]} 51. Kd1 {[%clk 0:00:19]}  Rh2 {[%clk 0:00:20]} 52. Bc3+ {[%clk 0:00:18]}  Kf8 {[%clk 0:00:19]} 53. Bb4+ {[%clk 0:00:18]}  Kg7 {[%clk 0:00:19]} 54. Re8 {[%clk 0:00:18]}  Rxh3 {[%clk 0:00:14]} 55. Bc3+ {[%clk 0:00:17]}  f6 {[%clk 0:00:15]} 56. Kc2 {[%clk 0:00:18]}  h5 {[%clk 0:00:14]} 57. Re7+ {[%clk 0:00:13]}  Kf8 {[%clk 0:00:14]} 58. Bxf6 {[%clk 0:00:14]}  hxg4 {[%clk 0:00:13]} 59. Bg6 {[%clk 0:00:14]}  Rh2+ {[%clk 0:00:04]} 60. Kb1 {[%clk 0:00:12]}  Rh1+ {[%clk 0:00:02]} 61. Ka2 {[%clk 0:00:13]}  Rh2+ {[%clk 0:00:02]} 62. Kb3 {[%clk 0:00:13]}  Rh3+ {[%clk 0:00:02]} 63. Kc4 {[%clk 0:00:14]} 1-0


[Site "https://www.chess.com"]

[Event "Titled Tuesday Blitz March 21 Late 2023"]
[White "Alekseenko, Kirill"]
[Black "Raja Rithvik R"]
[WhiteFideId "4135539"]
[BlackFideId "35007394"]
[WhiteElo "2683"]
[BlackElo "2402"]
[Result "1-0"]
[Round "06"]
[TimeControl "180+2"]
[Date "2023.03.21"]
[WhiteClock "0:00:21"]
[BlackClock "0:00:02"]

1. d4 {[%clk 0:03:00]}  Nf6 {[%clk 0:02:58]} 2. Nc3 {[%clk 0:03:00]}  d5 {[%clk 0:02:58]} 3. Bf4 {[%clk 0:02:58]}  c5 {[%clk 0:02:49]} 4. e3 {[%clk 0:02:56]}  a6 {[%clk 0:02:48]} 5. Nf3 {[%clk 0:02:55]}  Nc6 {[%clk 0:02:37]} 6. dxc5 {[%clk 0:02:55]}  e6 {[%clk 0:02:37]} 7. Na4 {[%clk 0:02:49]}  Bxc5 {[%clk 0:02:35]} 8. Nxc5 {[%clk 0:02:48]}  Qa5+ {[%clk 0:02:36]} 9. c3 {[%clk 0:02:48]}  Qxc5 {[%clk 0:02:36]} 10. Bd3 {[%clk 0:02:48]}  O-O {[%clk 0:02:33]} 11. O-O {[%clk 0:02:45]}  Qe7 {[%clk 0:02:31]} 12. Ne5 {[%clk 0:02:41]}  Rd8 {[%clk 0:02:26]} 13. h3 {[%clk 0:02:40]}  Nxe5 {[%clk 0:02:14]} 14. Bxe5 {[%clk 0:02:40]}  Nd7 {[%clk 0:02:14]} 15. Bh2 {[%clk 0:02:33]}  Nc5 {[%clk 0:02:14]} 16. Bc2 {[%clk 0:02:32]}  e5 {[%clk 0:02:12]} 17. Qh5 {[%clk 0:02:26]}  e4 {[%clk 0:02:07]} 18. Rad1 {[%clk 0:02:25]}  Be6 {[%clk 0:02:01]} 19. Rd2 {[%clk 0:02:12]}  Rd7 {[%clk 0:01:52]} 20. b4 {[%clk 0:01:45]}  Nd3 {[%clk 0:01:47]} 21. Bxd3 {[%clk 0:01:45]}  exd3 {[%clk 0:01:47]} 22. Rxd3 {[%clk 0:01:46]}  Rc8 {[%clk 0:01:48]} 23. Be5 {[%clk 0:01:42]}  f6 {[%clk 0:01:49]} 24. Bd4 {[%clk 0:01:41]}  Qf7 {[%clk 0:01:48]} 25. Qf3 {[%clk 0:01:40]}  Qg6 {[%clk 0:01:47]} 26. Rd2 {[%clk 0:01:38]}  Bf5 {[%clk 0:01:42]} 27. Kh2 {[%clk 0:01:37]}  Be4 {[%clk 0:01:36]} 28. Qg3 {[%clk 0:01:38]}  Kf7 {[%clk 0:01:25]} 29. f3 {[%clk 0:01:33]}  Qxg3+ {[%clk 0:01:22]} 30. Kxg3 {[%clk 0:01:34]}  Bf5 {[%clk 0:01:22]} 31. Kf4 {[%clk 0:01:33]}  Be6 {[%clk 0:01:12]} 32. g4 {[%clk 0:01:33]}  Rc6 {[%clk 0:00:53]} 33. h4 {[%clk 0:01:33]}  Rc8 {[%clk 0:00:41]} 34. g5 {[%clk 0:01:29]}  fxg5+ {[%clk 0:00:23]} 35. hxg5 {[%clk 0:01:21]}  Kg6 {[%clk 0:00:24]} 36. Rg1 {[%clk 0:01:01]}  Rf8+ {[%clk 0:00:22]} 37. Kg3 {[%clk 0:01:01]}  Rf5 {[%clk 0:00:20]} 38. f4 {[%clk 0:00:56]}  Rf8 {[%clk 0:00:21]} 39. Be5 {[%clk 0:00:55]}  Bf5 {[%clk 0:00:19]} 40. c4 {[%clk 0:00:53]}  dxc4 {[%clk 0:00:18]} 41. Rxd7 {[%clk 0:00:52]}  Bxd7 {[%clk 0:00:19]} 42. Rd1 {[%clk 0:00:53]}  Bf5 {[%clk 0:00:18]} 43. Rd4 {[%clk 0:00:46]}  Bd3 {[%clk 0:00:08]} 44. Rd6+ {[%clk 0:00:36]}  Kf7 {[%clk 0:00:06]} 45. Rd7+ {[%clk 0:00:35]}  Ke6 {[%clk 0:00:06]} 46. Rxg7 {[%clk 0:00:28]}  Rc8 {[%clk 0:00:04]} 47. Bc3 {[%clk 0:00:29]}  Be4 {[%clk 0:00:05]} 48. Bf6 {[%clk 0:00:24]}  Kf5 {[%clk 0:00:02]} 49. Re7 {[%clk 0:00:20]}  Bd3 {[%clk 0:00:03]} 50. Bc3 {[%clk 0:00:21]}  Be4 {[%clk 0:00:02]} 51. Re5+ {[%clk 0:00:21]} 1-0


[Site "https://www.chess.com"]

[Event "Titled Tuesday Blitz March 21 Late 2023"]
[White "Holt, Conrad"]
[Black "Makarian, Rudik"]
[WhiteFideId "2034387"]
[BlackFideId "44105681"]
[WhiteElo "2592"]
[BlackElo "2436"]
[Result "0-1"]
[Round "06"]
[TimeControl "180+2"]
[Date "2023.03.21"]
[WhiteClock "0:00:02"]
[BlackClock "0:00:10"]

1. d4 {[%clk 0:03:00]}  Nf6 {[%clk 0:02:59]} 2. c4 {[%clk 0:03:00]}  e6 {[%clk 0:03:00]} 3. Nc3 {[%clk 0:03:00]}  d5 {[%clk 0:03:01]} 4. cxd5 {[%clk 0:03:00]}  exd5 {[%clk 0:03:01]} 5. Bg5 {[%clk 0:03:00]}  c6 {[%clk 0:03:01]} 6. e3 {[%clk 0:03:00]}  h6 {[%clk 0:03:01]} 7. Bh4 {[%clk 0:03:00]}  Be7 {[%clk 0:03:01]} 8. Qc2 {[%clk 0:02:58]}  O-O {[%clk 0:03:02]} 9. Bd3 {[%clk 0:02:58]}  Re8 {[%clk 0:03:02]} 10. Nf3 {[%clk 0:02:54]}  Nbd7 {[%clk 0:02:58]} 11. O-O {[%clk 0:02:52]}  Ne4 {[%clk 0:02:58]} 12. Bxe7 {[%clk 0:02:52]}  Qxe7 {[%clk 0:02:58]} 13. b4 {[%clk 0:02:52]}  Ndf6 {[%clk 0:02:50]} 14. b5 {[%clk 0:02:51]}  c5 {[%clk 0:02:22]} 15. dxc5 {[%clk 0:02:37]}  Nxc5 {[%clk 0:02:22]} 16. Nd4 {[%clk 0:02:31]}  Bd7 {[%clk 0:02:17]} 17. Bf5 {[%clk 0:02:24]}  Rac8 {[%clk 0:02:10]} 18. Rac1 {[%clk 0:02:11]}  g6 {[%clk 0:01:58]} 19. Bxd7 {[%clk 0:02:09]}  Qxd7 {[%clk 0:01:58]} 20. Rfd1 {[%clk 0:01:49]}  h5 {[%clk 0:01:25]} 21. h3 {[%clk 0:01:38]}  Qe7 {[%clk 0:01:22]} 22. Na4 {[%clk 0:01:33]}  Nfe4 {[%clk 0:01:06]} 23. Nxc5 {[%clk 0:01:32]}  Rxc5 {[%clk 0:01:07]} 24. Qb2 {[%clk 0:01:32]}  Rec8 {[%clk 0:01:01]} 25. Nb3 {[%clk 0:00:54]}  Rc4 {[%clk 0:00:51]} 26. Rxd5 {[%clk 0:00:46]}  Rxc1+ {[%clk 0:00:51]} 27. Nxc1 {[%clk 0:00:46]}  Qf6 {[%clk 0:00:49]} 28. Rd4 {[%clk 0:00:35]}  Nxf2 {[%clk 0:00:35]} 29. Qd2 {[%clk 0:00:23]}  Qf5 {[%clk 0:00:23]} 30. Rf4 {[%clk 0:00:10]}  Ne4 {[%clk 0:00:12]} 31. Qe1 {[%clk 0:00:02]}  Qe6 {[%clk 0:00:11]} 32. Nb3 {[%clk 0:00:02]}  Qe5 {[%clk 0:00:11]} 33. Qf1 {[%clk 0:00:02]}  Ng3 {[%clk 0:00:10]} 0-1


[Site "https://www.chess.com"]

[Event "Titled Tuesday Blitz March 21 Late 2023"]
[White "Steinberg, Nitzan"]
[Black "Adewumi, Tanitoluwa"]
[WhiteFideId "2801795"]
[BlackFideId "30966396"]
[WhiteElo "2486"]
[BlackElo "2763"]
[Result "1-0"]
[Round "06"]
[TimeControl "180+2"]
[Date "2023.03.21"]
[WhiteClock "0:00:22"]
[BlackClock "0:00:01"]

1. Nf3 {[%clk 0:03:00]}  Nf6 {[%clk 0:02:56]} 2. g3 {[%clk 0:02:59]}  d5 {[%clk 0:02:54]} 3. Bg2 {[%clk 0:03:00]}  Bf5 {[%clk 0:02:54]} 4. O-O {[%clk 0:03:00]}  e6 {[%clk 0:02:53]} 5. d3 {[%clk 0:03:00]}  h6 {[%clk 0:02:50]} 6. Nbd2 {[%clk 0:02:59]}  c6 {[%clk 0:02:49]} 7. Qe1 {[%clk 0:02:58]}  Bh7 {[%clk 0:02:48]} 8. e4 {[%clk 0:02:54]}  Na6 {[%clk 0:02:41]} 9. a3 {[%clk 0:02:49]}  Be7 {[%clk 0:02:36]} 10. e5 {[%clk 0:02:44]}  Nd7 {[%clk 0:02:35]} 11. Qe2 {[%clk 0:02:44]}  b5 {[%clk 0:02:28]} 12. Re1 {[%clk 0:02:43]}  Rc8 {[%clk 0:02:24]} 13. Nf1 {[%clk 0:02:43]}  c5 {[%clk 0:02:22]} 14. h4 {[%clk 0:02:43]}  d4 {[%clk 0:02:05]} 15. N1h2 {[%clk 0:02:38]}  Nb6 {[%clk 0:01:23]} 16. Ng4 {[%clk 0:02:33]}  c4 {[%clk 0:01:13]} 17. Bf4 {[%clk 0:01:59]}  Nc5 {[%clk 0:01:06]} 18. Rad1 {[%clk 0:01:57]}  cxd3 {[%clk 0:00:39]} 19. cxd3 {[%clk 0:01:58]}  Bf5 {[%clk 0:00:27]} 20. Ngh2 {[%clk 0:01:45]}  Nd5 {[%clk 0:00:20]} 21. h5 {[%clk 0:01:41]}  Nxf4 {[%clk 0:00:19]} 22. gxf4 {[%clk 0:01:41]}  g5 {[%clk 0:00:17]} 23. hxg6 {[%clk 0:01:36]}  fxg6 {[%clk 0:00:07]} 24. Nf1 {[%clk 0:01:31]}  h5 {[%clk 0:00:05]} 25. Ng3 {[%clk 0:01:30]}  Bg4 {[%clk 0:00:05]} 26. Ne4 {[%clk 0:01:02]}  h4 {[%clk 0:00:04]} 27. Kh2 {[%clk 0:01:01]}  h3 {[%clk 0:00:04]} 28. Bh1 {[%clk 0:01:02]}  O-O {[%clk 0:00:04]} 29. Kg3 {[%clk 0:00:50]}  Bf5 {[%clk 0:00:03]} 30. Neg5 {[%clk 0:00:36]}  Kg7 {[%clk 0:00:02]} 31. Rg1 {[%clk 0:00:34]}  Rh8 {[%clk 0:00:01]} 32. Kh2 {[%clk 0:00:34]}  Qf8 {[%clk 0:00:02]} 33. Rg3 {[%clk 0:00:30]}  Bxd3 {[%clk 0:00:02]} 34. Rxd3 {[%clk 0:00:30]}  Nxd3 {[%clk 0:00:01]} 35. Qxd3 {[%clk 0:00:31]}  Qf5 {[%clk 0:00:01]} 36. Nxd4 {[%clk 0:00:25]}  Qxd3 {[%clk 0:00:01]} 37. Ndxe6+ {[%clk 0:00:22]} 1-0


[Site "https://www.chess.com"]

[Event "Titled Tuesday Blitz March 21 Late 2023"]
[White "Zamorano, Jorge"]
[Black "Zierk, Steven"]
[WhiteFideId "173770"]
[BlackFideId "2034255"]
[WhiteElo "2331"]
[BlackElo "2494"]
[Result "0-1"]
[Round "06"]
[TimeControl "180+2"]
[Date "2023.03.21"]
[WhiteClock "0:00:53"]
[BlackClock "0:00:50"]

1. e4 {[%clk 0:03:00]}  e6 {[%clk 0:03:00]} 2. d3 {[%clk 0:02:57]}  d5 {[%clk 0:03:01]} 3. Nd2 {[%clk 0:02:58]}  Nf6 {[%clk 0:03:01]} 4. Ngf3 {[%clk 0:02:54]}  c5 {[%clk 0:02:58]} 5. g3 {[%clk 0:02:54]}  Be7 {[%clk 0:02:57]} 6. Bg2 {[%clk 0:02:55]}  O-O {[%clk 0:02:57]} 7. O-O {[%clk 0:02:55]}  Nc6 {[%clk 0:02:58]} 8. Re1 {[%clk 0:02:56]}  b6 {[%clk 0:02:57]} 9. e5 {[%clk 0:02:55]}  Nd7 {[%clk 0:02:57]} 10. Nf1 {[%clk 0:02:56]}  f6 {[%clk 0:02:53]} 11. exf6 {[%clk 0:02:51]}  Bxf6 {[%clk 0:02:53]} 12. c3 {[%clk 0:02:41]}  Re8 {[%clk 0:02:50]} 13. d4 {[%clk 0:02:39]}  Bb7 {[%clk 0:02:43]} 14. Bf4 {[%clk 0:02:37]}  Nf8 {[%clk 0:02:26]} 15. Ne5 {[%clk 0:02:25]}  Nxe5 {[%clk 0:02:21]} 16. Bxe5 {[%clk 0:02:25]}  Bxe5 {[%clk 0:02:08]} 17. Rxe5 {[%clk 0:02:25]}  Qd7 {[%clk 0:02:05]} 18. h4 {[%clk 0:02:18]}  Qd6 {[%clk 0:01:53]} 19. f4 {[%clk 0:02:08]}  Ng6 {[%clk 0:01:51]} 20. Re3 {[%clk 0:02:05]}  Ne7 {[%clk 0:01:46]} 21. Bh3 {[%clk 0:01:53]}  Nf5 {[%clk 0:01:45]} 22. Bxf5 {[%clk 0:01:54]}  exf5 {[%clk 0:01:46]} 23. Re5 {[%clk 0:01:54]}  Rxe5 {[%clk 0:01:46]} 24. fxe5 {[%clk 0:01:54]}  Qg6 {[%clk 0:01:46]} 25. Qf3 {[%clk 0:01:51]}  f4 {[%clk 0:01:45]} 26. Qxf4 {[%clk 0:01:28]}  Rf8 {[%clk 0:01:44]} 27. Qe3 {[%clk 0:01:29]}  Bc8 {[%clk 0:01:37]} 28. Re1 {[%clk 0:01:20]}  Bf5 {[%clk 0:01:17]} 29. Nd2 {[%clk 0:01:12]}  cxd4 {[%clk 0:01:13]} 30. cxd4 {[%clk 0:01:11]}  Be6 {[%clk 0:01:06]} 31. Rf1 {[%clk 0:01:06]}  Rc8 {[%clk 0:01:05]} 32. Rf2 {[%clk 0:00:58]}  Rc1+ {[%clk 0:00:55]} 33. Kh2 {[%clk 0:00:58]}  Qg4 {[%clk 0:00:51]} 34. Qf4 {[%clk 0:00:53]}  Qh3# {[%clk 0:00:50]} 0-1


[Site "https://www.chess.com"]

[Event "Titled Tuesday Blitz March 21 Late 2023"]
[White "Ehlvest, Jaan"]
[Black "Moussard, Jules"]
[WhiteFideId "4500016"]
[BlackFideId "642908"]
[WhiteElo "2442"]
[BlackElo "2610"]
[Result "0-1"]
[Round "06"]
[TimeControl "180+2"]
[Date "2023.03.21"]
[WhiteClock "0:00:05"]
[BlackClock "0:00:05"]

1. e4 {[%clk 0:02:51]}  c5 {[%clk 0:02:59]} 2. Nf3 {[%clk 0:02:50]}  e6 {[%clk 0:03:00]} 3. g3 {[%clk 0:02:49]}  Nc6 {[%clk 0:02:59]} 4. Bg2 {[%clk 0:02:49]}  Nf6 {[%clk 0:02:59]} 5. d3 {[%clk 0:02:49]}  d6 {[%clk 0:02:50]} 6. O-O {[%clk 0:02:48]}  Be7 {[%clk 0:02:49]} 7. Re1 {[%clk 0:02:48]}  O-O {[%clk 0:02:49]} 8. c3 {[%clk 0:02:48]}  e5 {[%clk 0:02:40]} 9. h3 {[%clk 0:02:48]}  Re8 {[%clk 0:02:33]} 10. d4 {[%clk 0:02:47]}  exd4 {[%clk 0:02:33]} 11. cxd4 {[%clk 0:02:46]}  Bf8 {[%clk 0:02:18]} 12. Nc3 {[%clk 0:02:45]}  Bd7 {[%clk 0:02:02]} 13. dxc5 {[%clk 0:02:28]}  Qb8 {[%clk 0:02:01]} 14. Bf4 {[%clk 0:02:26]}  Ne5 {[%clk 0:01:56]} 15. Rc1 {[%clk 0:02:12]}  Bc6 {[%clk 0:01:54]} 16. Nd5 {[%clk 0:02:04]}  Nh5 {[%clk 0:01:35]} 17. Nxe5 {[%clk 0:01:40]}  dxe5 {[%clk 0:01:33]} 18. Be3 {[%clk 0:01:35]}  g6 {[%clk 0:01:24]} 19. b4 {[%clk 0:01:33]}  Qd8 {[%clk 0:00:57]} 20. Qb3 {[%clk 0:01:32]}  Ng7 {[%clk 0:00:51]} 21. b5 {[%clk 0:01:29]}  Bxd5 {[%clk 0:00:48]} 22. exd5 {[%clk 0:01:29]}  Nf5 {[%clk 0:00:49]} 23. d6 {[%clk 0:01:26]}  Rb8 {[%clk 0:00:46]} 24. Rcd1 {[%clk 0:01:19]}  b6 {[%clk 0:00:44]} 25. Bc6 {[%clk 0:01:01]}  Re6 {[%clk 0:00:34]} 26. Bd5 {[%clk 0:01:01]}  Nxe3 {[%clk 0:00:32]} 27. Rxe3 {[%clk 0:00:52]}  Rf6 {[%clk 0:00:32]} 28. Rf3 {[%clk 0:00:47]}  bxc5 {[%clk 0:00:30]} 29. Bxf7+ {[%clk 0:00:46]}  Kg7 {[%clk 0:00:31]} 30. d7 {[%clk 0:00:43]}  Rxb5 {[%clk 0:00:27]} 31. Qxb5 {[%clk 0:00:34]}  Rxf3 {[%clk 0:00:27]} 32. Bd5 {[%clk 0:00:34]}  Rf6 {[%clk 0:00:26]} 33. Bc6 {[%clk 0:00:27]}  Bd6 {[%clk 0:00:26]} 34. Qc4 {[%clk 0:00:25]}  h5 {[%clk 0:00:22]} 35. h4 {[%clk 0:00:24]}  Qf8 {[%clk 0:00:21]} 36. Rd2 {[%clk 0:00:22]}  Bc7 {[%clk 0:00:21]} 37. Qe4 {[%clk 0:00:21]}  Kh6 {[%clk 0:00:18]} 38. Ba4 {[%clk 0:00:20]}  Bb6 {[%clk 0:00:17]} 39. Qc4 {[%clk 0:00:18]}  e4 {[%clk 0:00:15]} 40. Qxe4 {[%clk 0:00:13]}  c4 {[%clk 0:00:16]} 41. Kh1 {[%clk 0:00:11]}  c3 {[%clk 0:00:14]} 42. Re2 {[%clk 0:00:10]}  Qd6 {[%clk 0:00:10]} 43. f4 {[%clk 0:00:09]}  Qc5 {[%clk 0:00:09]} 44. Kh2 {[%clk 0:00:07]}  Qg1+ {[%clk 0:00:07]} 45. Kh3 {[%clk 0:00:07]}  Qf1+ {[%clk 0:00:06]} 46. Qg2 {[%clk 0:00:07]}  Qxg2+ {[%clk 0:00:04]} 47. Kxg2 {[%clk 0:00:07]}  Rd6 {[%clk 0:00:05]} 48. Kf3 {[%clk 0:00:06]}  Rd3+ {[%clk 0:00:04]} 49. Ke4 {[%clk 0:00:05]}  Rd4+ {[%clk 0:00:04]} 50. Ke5 {[%clk 0:00:05]}  Rxa4 {[%clk 0:00:05]} 0-1


[Site "https://www.chess.com"]